fUSD/lending_fUSD_20250309
["ID","MTS","AMOUNT","RATE_DAILY","PERIOD"]
[355766012,1741545562399,187.65,8.158e-05,2]
[355766013,1741545562639,187.65,8.183e-05,2]
[355766014,1741545718181,400.0,7.671e-05,2]
[355766015,1741545718212,224.42,7.671e-05,2]
[355766016,1741545830703,175.58,7.65e-05,2]
[355766017,1741545830732,400.0,7.65e-05,2]
[355766018,1741545830757,46.52,7.65e-05,2]
[355766019,1741545848983,23374.98,7.649e-05,2]
[355766021,1741545905786,150.0,8.192e-05,2]
[355766070,1741546083328,855.71,7.596e-05,2]
[355766071,1741546085963,175.14,7.596e-05,2]
[355766203,1741546223966,3000.0,0.00028,120]
[355766212,1741546231353,-187.65,8.208e-05,2]
[355766213,1741546231363,-150.0,8.211e-05,2]
[355766214,1741546231372,-550.0,8.211e-05,2]
[355766215,1741546231381,-150.0,8.215e-05,2]
[355766216,1741546231390,-361.80980421,8.218e-05,2]
[355766217,1741546231401,-1988.67435946,8.218e-05,2]
[355766218,1741546231410,-150.0,8.218e-05,2]
[355766219,1741546231419,-517.35993778,8.219e-05,2]
[355766220,1741546231428,-500.0,8.219e-05,2]
[355766221,1741546231438,-500.0,8.219e-05,2]
[355766222,1741546231447,-500.0,8.219e-05,2]
[355766223,1741546231456,-511.45901406,8.219e-05,2]
[355766224,1741546231465,-500.0,8.219e-05,2]
[355766225,1741546231475,-356.51657022,8.219e-05,2]
[355766226,1741546231484,-406.06121139,8.219e-05,2]
[355766227,1741546231509,-93.93878861,8.219e-05,2]
[355766228,1741546231519,-240.56868401,8.219e-05,2]
[355766229,1741546231535,-259.43131599,8.219e-05,2]
[355766230,1741546231545,-541.84,8.219e-05,2]
[355766231,1741546231554,-500.0,8.219e-05,2]
[355766232,1741546231563,-500.0,8.219e-05,2]
[355766233,1741546231573,-500.0,8.219e-05,2]
[355766234,1741546231583,-500.0,8.219e-05,2]
[355766235,1741546231592,-500.0,8.219e-05,2]
[355766236,1741546231601,-500.0,8.219e-05,2]
[355766237,1741546231611,-500.0,8.219e-05,2]
[355766238,1741546231620,-500.0,8.219e-05,2]
[355766239,1741546231630,-500.0,8.219e-05,2]
[355766240,1741546231639,-477.74102834,8.219e-05,2]
[355766241,1741546231648,-579.96,8.219e-05,2]
[355766242,1741546231657,-545.81,8.219e-05,2]
[355766243,1741546231666,-210.14093216,8.219e-05,2]
[355766244,1741546231675,-500.0,8.219e-05,2]
[355766245,1741546231684,-500.0,8.219e-05,2]
[355766246,1741546231694,-500.0,8.219e-05,2]
[355766247,1741546231703,-500.0,8.219e-05,2]
[355766248,1741546231713,-500.0,8.219e-05,2]
[355766249,1741546231722,-500.0,8.219e-05,2]
[355766250,1741546231732,-500.0,8.219e-05,2]
[355766251,1741546231741,-517.11746082,8.219e-05,2]
[355766252,1741546231751,-500.0,8.219e-05,2]
[355766253,1741546231760,-500.0,8.219e-05,2]
[355766254,1741546231770,-500.0,8.219e-05,2]
[355766255,1741546231788,-500.0,8.219e-05,2]
[355766256,1741546231798,-500.0,8.219e-05,2]
[355766257,1741546231807,-500.0,8.219e-05,2]
[355766258,1741546231814,-514.12087596,8.219e-05,2]
[355766259,1741546231821,-500.0,8.219e-05,2]
[355766260,1741546231828,-500.0,8.219e-05,2]
[355766261,1741546231835,-500.0,8.219e-05,2]
[355766263,1741546231845,-500.0,8.219e-05,2]
[355766264,1741546231855,-500.0,8.219e-05,2]
[355766265,1741546231866,-500.0,8.219e-05,2]
[355766267,1741546231876,-500.0,8.219e-05,2]
[355766269,1741546231886,-550.57983041,8.219e-05,2]
[355766270,1741546231895,-500.0,8.219e-05,2]
[355766271,1741546231906,-500.0,8.219e-05,2]
[355766272,1741546231915,-500.0,8.219e-05,2]
[355766273,1741546231925,-142.0469949,8.219e-05,2]
[355766274,1741546231937,-236.16196414,8.219e-05,2]
[355766275,1741546231948,-500.0,8.219e-05,2]
[355766276,1741546231958,-500.0,8.219e-05,2]
[355766277,1741546231968,-500.0,8.219e-05,2]
[355766278,1741546231978,-500.0,8.219e-05,2]
[355766279,1741546231988,-500.0,8.219e-05,2]
[355766280,1741546231997,-500.0,8.219e-05,2]
[355766281,1741546232007,-516.47550598,8.219e-05,2]
[355766282,1741546232016,-500.0,8.219e-05,2]
[355766283,1741546232030,-500.0,8.219e-05,2]
[355766284,1741546232040,-522.87091088,8.219e-05,2]
[355766285,1741546232050,-500.0,8.219e-05,2]
[355766286,1741546232060,-510.00767304,8.219e-05,2]
[355766287,1741546232070,-5023.66265713,8.219e-05,2]
[355766288,1741546232079,-500.0,8.219e-05,2]
[355766289,1741546232088,-490.0,8.219e-05,2]
[355766290,1741546232097,-427.07809282,8.219e-05,2]
[355766291,1741546232109,-72.92190718,8.219e-05,2]
[355766292,1741546232119,-150.1536953,8.219e-05,2]
[355766294,1741546232128,-527.39370091,8.219e-05,2]
[355766295,1741546232137,-7.91573586,8.219e-05,2]
[355766296,1741546232169,-503.51001994,8.219e-05,2]
[355766297,1741546232179,-162.92998006,8.219e-05,2]
[355766298,1741546232190,-331.8923508,8.219e-05,2]
[355766299,1741546232200,-368.1076492,8.219e-05,2]
[355766300,1741546232212,-131.8923508,8.219e-05,2]
[355766301,1741546232221,-595.21648223,8.219e-05,2]
[355766302,1741546232230,-502.77105969,8.219e-05,2]
[355766303,1741546232239,-504.16034882,8.219e-05,2]
[355766304,1741546232249,-511.95504631,8.219e-05,2]
[355766305,1741546232258,-500.0,8.219e-05,2]
[355766306,1741546232268,-510.86239539,8.219e-05,2]
[355766307,1741546232280,-517.45500859,8.219e-05,2]
[355766308,1741546232290,-458.25342012,8.219e-05,2]
[355766309,1741546232302,-51.98741951,8.219e-05,2]
[355766310,1741546232312,-500.0,8.219e-05,2]
[355766311,1741546232327,-120.406829,8.219e-05,2]
[355766312,1741546232353,-384.04412704,8.219e-05,2]
[355766313,1741546232363,-511.19947733,8.219e-05,2]
[355766314,1741546232372,-500.0,8.219e-05,2]
[355766315,1741546232381,-510.37622423,8.219e-05,2]
[355766316,1741546232391,-500.0,8.219e-05,2]
[355766317,1741546232400,-500.0,8.219e-05,2]
[355766318,1741546232410,-510.53308249,8.219e-05,2]
[355766319,1741546232420,-501.96793643,8.219e-05,2]
[355766320,1741546232429,-522.28406937,8.219e-05,2]
[355766321,1741546232439,-250.0,8.219e-05,2]
[355766322,1741546232448,-292.01006008,8.219e-05,2]
[355766323,1741546232467,-255.06928743,8.219e-05,2]
[355766332,1741546237513,-613.99065249,8.219e-05,2]
[355766333,1741546237522,-156.77,8.219e-05,2]
[355766334,1741546237533,-551.5,8.219e-05,2]
[355766335,1741546237543,-477.73934751,8.219e-05,2]
[355766336,1741546237571,-316.07329175,8.219e-05,2]
[355766337,1741546237582,-206.18736074,8.219e-05,2]
[355766338,1741546237591,-187.65,8.233e-05,2]
[355766339,1741546237601,-187.65,8.259e-05,2]
[355766340,1741546237610,-78.29696417,8.284e-05,2]
[355766341,1741546237629,-109.35303583,8.284e-05,2]
[355766342,1741546237639,-187.65,8.309e-05,2]
[355766343,1741546237649,-204.53774652,8.309e-05,2]
[355766344,1741546237660,-295.45225348,8.309e-05,2]
[355766345,1741546237670,-826.21,8.309e-05,2]
[355766346,1741546237679,-299.99,8.309e-05,2]
[355766347,1741546237688,-892.29774652,8.309e-05,2]
[355766498,1741546239483,-617.75225348,8.309e-05,2]
[355766500,1741546239493,-150.99,8.309e-05,2]
[355766502,1741546239502,-9999.99,8.309e-05,2]
[355766504,1741546239512,-187.65,8.335e-05,2]
[355766506,1741546239522,-187.65,8.36e-05,2]
[355766508,1741546239540,-187.65,8.385e-05,2]
[355766510,1741546239549,-187.65,8.41e-05,2]
[355766512,1741546239558,-187.65,8.436e-05,2]
[355766514,1741546239567,-168.56,8.441e-05,2]
[355766516,1741546239578,-109897.12781959,8.448e-05,2]
[355766518,1741546239587,-187.65,8.461e-05,2]
[355766520,1741546239596,-187.65,8.486e-05,2]
[355766522,1741546239606,-500.0,8.493e-05,2]
[355766524,1741546239616,-518.62749084,8.493e-05,2]
[355766526,1741546239626,-500.0,8.493e-05,2]
[355766528,1741546239635,-500.0,8.493e-05,2]
[355766530,1741546239644,-500.0,8.493e-05,2]
[355766532,1741546239654,-596.44,8.493e-05,2]
[355766533,1741546239663,-500.0,8.493e-05,2]
[355766535,1741546239673,-500.0,8.493e-05,2]
[355766537,1741546239683,-500.0,8.493e-05,2]
[355766539,1741546239692,-500.0,8.493e-05,2]
[355766541,1741546239702,-500.0,8.493e-05,2]
[355766543,1741546239711,-545.81,8.493e-05,2]
[355766545,1741546239721,-500.0,8.493e-05,2]
[355766547,1741546239730,-500.0,8.493e-05,2]
[355766549,1741546239740,-500.0,8.493e-05,2]
[355766551,1741546239749,-500.0,8.493e-05,2]
[355766553,1741546239759,-500.0,8.493e-05,2]
[355766555,1741546239769,-500.0,8.493e-05,2]
[355766557,1741546239783,-316.07584028,8.493e-05,2]
[355766559,1741546239792,-500.0,8.493e-05,2]
[355766561,1741546239801,-500.0,8.493e-05,2]
[355766563,1741546239811,-566.00242515,8.493e-05,2]
[355766565,1741546239820,-500.0,8.493e-05,2]
[355766567,1741546239830,-500.0,8.493e-05,2]
[355766569,1741546239840,-185.09,8.493e-05,2]
[355766570,1741546239849,-500.0,8.493e-05,2]
[355766573,1741546239860,-500.0,8.493e-05,2]
[355766574,1741546239872,-500.0,8.493e-05,2]
[355766576,1741546239882,-500.0,8.493e-05,2]
[355766578,1741546239891,-500.0,8.493e-05,2]
[355766581,1741546239902,-500.0,8.493e-05,2]
[355766583,1741546239912,-500.0,8.493e-05,2]
[355766584,1741546239921,-500.0,8.493e-05,2]
[355766587,1741546239931,-500.0,8.493e-05,2]
[355766589,1741546239942,-500.0,8.493e-05,2]
[355766591,1741546239951,-239.22487769,8.493e-05,2]
[355766593,1741546239961,-500.0,8.493e-05,2]
[355766595,1741546239973,-500.0,8.493e-05,2]
[355766597,1741546239982,-500.0,8.493e-05,2]
[355766599,1741546239991,-500.0,8.493e-05,2]
[355766601,1741546240001,-500.0,8.493e-05,2]
[355766602,1741546240010,-500.0,8.493e-05,2]
[355766605,1741546240020,-500.0,8.493e-05,2]
[355766606,1741546240034,-500.0,8.493e-05,2]
[355766609,1741546240044,-514.59905443,8.493e-05,2]
[355766611,1741546240054,-203.26580104,8.493e-05,2]
[355766612,1741546240063,-438.60519816,8.493e-05,2]
[355766614,1741546240073,-500.0,8.493e-05,2]
[355766616,1741546240082,-500.0,8.565e-05,2]
[355766618,1741546240092,-802.79,8.565e-05,2]
[355766621,1741546240102,-509.56,8.565e-05,2]
[355766623,1741546240112,-500.0,8.565e-05,2]
[355766625,1741546240121,-500.0,8.566e-05,2]
[355766626,1741546240131,-500.0,8.566e-05,2]
[355766628,1741546240140,-705.16,8.566e-05,2]
[355766630,1741546240150,-500.0,8.566e-05,2]
[355766632,1741546240159,-1127.93,8.566e-05,2]
[355766634,1741546240168,-500.0,8.566e-05,2]
[355766636,1741546240178,-153.821542,8.566e-05,2]
[355766638,1741546240187,-1079.62,8.566e-05,2]
[355766640,1741546240196,-500.0,8.566e-05,2]
[355766642,1741546240206,-1660.3,8.566e-05,2]
[355766644,1741546240216,-285.055882,8.566e-05,2]
[355766646,1741546240226,-588.89,8.566e-05,2]
[355766648,1741546240235,-500.0,8.566e-05,2]
[355766650,1741546240245,-545.12,8.566e-05,2]
[355766652,1741546240255,-761.97,8.566e-05,2]
[355766654,1741546240265,-500.0,8.566e-05,2]
[355766656,1741546240274,-1262.31,8.566e-05,2]
[355766676,1741546240489,-902.78,8.566e-05,2]
[355766677,1741546240499,-631.94,8.566e-05,2]
[355766678,1741546240508,-500.0,8.566e-05,2]
[355766679,1741546240517,-1277.74,8.566e-05,2]
[355766680,1741546240526,-500.0,8.566e-05,2]
[355766681,1741546240539,-709.59,8.566e-05,2]
[355766682,1741546240548,-914.53,8.566e-05,2]
[355766683,1741546240557,-500.0,8.566e-05,2]
[355766685,1741546240566,-1716.53,8.566e-05,2]
[355766687,1741546240576,-500.0,8.566e-05,2]
[355766689,1741546240585,-685.88,8.566e-05,2]
[355766691,1741546240594,-2303.87,8.566e-05,2]
[355766693,1741546240604,-803.96,8.566e-05,2]
[355766695,1741546240613,-170.32,8.566e-05,2]
[355766697,1741546240623,-500.0,8.566e-05,2]
[355766699,1741546240632,-1439.43,8.566e-05,2]
[355766701,1741546240640,-979.42,8.566e-05,2]
[355766703,1741546240650,-500.0,8.566e-05,2]
[355766705,1741546240659,-692.47,8.566e-05,2]
[355766707,1741546240667,-1150.4,8.566e-05,2]
[355766709,1741546240676,-4261.52,8.566e-05,2]
[355766711,1741546240685,-500.0,8.566e-05,2]
[355766713,1741546240694,-500.0,8.566e-05,2]
[355766715,1741546240703,-686.57,8.566e-05,2]
[355766717,1741546240713,-500.0,8.566e-05,2]
[355766719,1741546240722,-1253.07583083,8.566e-05,2]
[355766721,1741546240731,-500.0,8.566e-05,2]
[355766723,1741546240741,-500.0,8.566e-05,2]
[355766724,1741546240750,-711.24,8.566e-05,2]
[355766726,1741546240760,-1125.72,8.566e-05,2]
[355766728,1741546240769,-1139.68,8.566e-05,2]
[355766730,1741546240779,-500.0,8.566e-05,2]
[355766732,1741546240791,-424.90050765,8.566e-05,2]
[355766734,1741546240801,-693.95,8.566e-05,2]
[355766736,1741546240811,-670.36,8.566e-05,2]
[355766738,1741546240820,-762.25,8.566e-05,2]
[355766740,1741546240830,-1384.0,8.566e-05,2]
[355766742,1741546240839,-691.27,8.566e-05,2]
[355766744,1741546240849,-910.69,8.566e-05,2]
[355766747,1741546240862,-2775.17,8.566e-05,2]
[355766748,1741546240872,-716.61,8.566e-05,2]
[355766750,1741546240881,-749.45,8.566e-05,2]
[355766752,1741546240891,-500.0,8.566e-05,2]
[355766754,1741546240902,-500.0,8.566e-05,2]
[355766756,1741546240911,-1055.07,8.566e-05,2]
[355766758,1741546240920,-500.0,8.566e-05,2]
[355766760,1741546240930,-500.0,8.566e-05,2]
[355766762,1741546240942,-790.29,8.566e-05,2]
[355766764,1741546240951,-500.0,8.566e-05,2]
[355766766,1741546240961,-3223.78,8.566e-05,2]
[355766768,1741546240971,-500.0,8.566e-05,2]
[355766770,1741546240981,-500.0,8.566e-05,2]
[355766772,1741546240990,-1917.15,8.566e-05,2]
[355766774,1741546240999,-500.0,8.566e-05,2]
[355766776,1741546241009,-836.6,8.566e-05,2]
[355766778,1741546241020,-10033.591,8.567e-05,2]
[355766780,1741546241031,-508.6597,8.567e-05,2]
[355766782,1741546241041,-34959.9318,8.567e-05,2]
[355766784,1741546241051,-504.3680041,8.643e-05,2]
[355766786,1741546241061,-500.0,8.666e-05,2]
[355766788,1741546241071,-500.0,8.666e-05,2]
[355766790,1741546241081,-618.63336901,8.666e-05,2]
[355766792,1741546241091,-500.0,8.666e-05,2]
[355766794,1741546241101,-500.0,8.666e-05,2]
[355766796,1741546241111,-500.0,8.666e-05,2]
[355766798,1741546241120,-500.0,8.666e-05,2]
[355766800,1741546241130,-500.0,8.666e-05,2]
[355766801,1741546241140,-500.0,8.666e-05,2]
[355766803,1741546241149,-500.0,8.666e-05,2]
[355766805,1741546241159,-526.03996248,8.666e-05,2]
[355766807,1741546241169,-500.0,8.666e-05,2]
[355766809,1741546241178,-500.0,8.666e-05,2]
[355766811,1741546241187,-500.0,8.666e-05,2]
[355766813,1741546241197,-500.0,8.666e-05,2]
[355766815,1741546241207,-500.0,8.666e-05,2]
[355766817,1741546241216,-645.07361262,8.666e-05,2]
[355766819,1741546241227,-500.0,8.666e-05,2]
[355766821,1741546241237,-500.0,8.666e-05,2]
[355766823,1741546241246,-500.0,8.666e-05,2]
[355766825,1741546241256,-500.0,8.666e-05,2]
[355766827,1741546241265,-500.0,8.666e-05,2]
[355766829,1741546241274,-500.0,8.666e-05,2]
[355766831,1741546241286,-500.0,8.666e-05,2]
[355766833,1741546241296,-500.0,8.666e-05,2]
[355766835,1741546241305,-500.0,8.666e-05,2]
[355766837,1741546241315,-500.0,8.666e-05,2]
[355766839,1741546241324,-500.0,8.666e-05,2]
[355766841,1741546241334,-500.0,8.666e-05,2]
[355766843,1741546241343,-500.0,8.666e-05,2]
[355766845,1741546241353,-500.0,8.666e-05,2]
[355766847,1741546241362,-500.0,8.666e-05,2]
[355766849,1741546241372,-500.0,8.666e-05,2]
[355766851,1741546241381,-500.0,8.666e-05,2]
[355766853,1741546241390,-500.0,8.666e-05,2]
[355766855,1741546241400,-500.0,8.666e-05,2]
[355766857,1741546241409,-500.0,8.666e-05,2]
[355766859,1741546241418,-500.0,8.666e-05,2]
[355766861,1741546241427,-500.0,8.666e-05,2]
[355766863,1741546241436,-500.0,8.666e-05,2]
[355766865,1741546241445,-500.0,8.666e-05,2]
[355766867,1741546241455,-500.0,8.666e-05,2]
[355766869,1741546241464,-500.0,8.666e-05,2]
[355766871,1741546241474,-500.0,8.666e-05,2]
[355766873,1741546241483,-500.0,8.666e-05,2]
[355766875,1741546241492,-500.0,8.666e-05,2]
[355766877,1741546241502,-533.57,8.666e-05,2]
[355766879,1741546241511,-500.0,8.666e-05,2]
[355766880,1741546241520,-500.0,8.666e-05,2]
[355766882,1741546241530,-500.0,8.666e-05,2]
[355766884,1741546241542,-500.0,8.666e-05,2]
[355766886,1741546241551,-500.0,8.666e-05,2]
[355766888,1741546241561,-500.0,8.666e-05,2]
[355766891,1741546241571,-500.0,8.666e-05,2]
[355766893,1741546241581,-620.9,8.666e-05,2]
[355766895,1741546241590,-500.0,8.666e-05,2]
[355766897,1741546241600,-1460.67,8.666e-05,2]
[355766898,1741546241609,-1807.73,8.666e-05,2]
[355766900,1741546241619,-500.0,8.666e-05,2]
[355766903,1741546241628,-500.0,8.666e-05,2]
[355766904,1741546241638,-500.0,8.666e-05,2]
[355766906,1741546241647,-988.75,8.666e-05,2]
[355766908,1741546241657,-775.25,8.666e-05,2]
[355766910,1741546241666,-500.0,8.666e-05,2]
[355766912,1741546241675,-6266.56,8.666e-05,2]
[355766914,1741546241685,-972.04,8.666e-05,2]
[355766916,1741546241694,-500.0,8.666e-05,2]
[355766918,1741546241703,-500.0,8.666e-05,2]
[355766920,1741546241712,-500.0,8.666e-05,2]
[355766922,1741546241722,-582.58,8.666e-05,2]
[355766924,1741546241732,-699.42,8.666e-05,2]
[355766926,1741546241742,-650.4,8.666e-05,2]
[355766928,1741546241751,-540.28,8.666e-05,2]
[355766930,1741546241761,-500.0,8.666e-05,2]
[355766932,1741546241770,-500.0,8.666e-05,2]
[355766934,1741546241784,-500.0,8.666e-05,2]
[355766936,1741546241794,-507.25,8.666e-05,2]
[355766938,1741546241803,-500.0,8.666e-05,2]
[355766940,1741546241812,-1116.24,8.666e-05,2]
[355766942,1741546241823,-500.0,8.666e-05,2]
[355766944,1741546241833,-827.44,8.666e-05,2]
[355766946,1741546241842,-500.0,8.666e-05,2]
[355766948,1741546241852,-1000.0,8.666e-05,2]
[355766950,1741546241862,-500.0,8.666e-05,2]
[355766952,1741546241877,-1287.21,8.666e-05,2]
[355766955,1741546241888,-613.28,8.666e-05,2]
[355766957,1741546241898,-1894.46,8.666e-05,2]
[355766959,1741546241909,-500.0,8.666e-05,2]
[355766960,1741546241919,-500.0,8.666e-05,2]
[355766963,1741546241929,-500.0,8.666e-05,2]
[355766964,1741546241938,-500.0,8.666e-05,2]
[355766966,1741546241948,-1067.83,8.666e-05,2]
[355766968,1741546241958,-7219.83,8.666e-05,2]
[355766970,1741546241968,-500.0,8.666e-05,2]
[355766972,1741546241978,-500.0,8.666e-05,2]
[355766974,1741546241988,-500.0,8.666e-05,2]
[355766976,1741546241997,-500.0,8.666e-05,2]
[355766978,1741546242007,-840.88,8.666e-05,2]
[355766980,1741546242017,-500.0,8.666e-05,2]
[355766982,1741546242028,-500.0,8.666e-05,2]
[355766984,1741546242045,-500.0,8.666e-05,2]
[355766986,1741546242054,-500.0,8.666e-05,2]
[355766988,1741546242065,-542.26,8.666e-05,2]
[355766990,1741546242075,-500.0,8.666e-05,2]
[355766992,1741546242084,-500.0,8.666e-05,2]
[355766994,1741546242094,-500.0,8.666e-05,2]
[355766996,1741546242104,-500.0,8.666e-05,2]
[355766998,1741546242113,-572.16,8.666e-05,2]
[355767001,1741546242124,-500.0,8.666e-05,2]
[355767003,1741546242135,-500.0,8.666e-05,2]
[355767005,1741546242145,-728.96,8.666e-05,2]
[355767006,1741546242155,-665.83,8.666e-05,2]
[355767007,1741546242165,-500.0,8.666e-05,2]
[355767008,1741546242175,-500.0,8.666e-05,2]
[355767009,1741546242185,-685.31,8.666e-05,2]
[355767010,1741546242194,-500.0,8.666e-05,2]
[355767011,1741546242205,-650.04,8.666e-05,2]
[355767012,1741546242215,-867.79,8.666e-05,2]
[355767013,1741546242224,-500.0,8.666e-05,2]
[355767016,1741546242234,-1586.9,8.666e-05,2]
[355767018,1741546242244,-1017.98,8.666e-05,2]
[355767021,1741546242253,-500.0,8.666e-05,2]
[355767023,1741546242262,-500.0,8.666e-05,2]
[355767024,1741546242271,-1820.59,8.666e-05,2]
[355767026,1741546242280,-509.80125735,8.666e-05,2]
[355767028,1741546242291,-500.0,8.666e-05,2]
[355767031,1741546242301,-500.0,8.666e-05,2]
[355767036,1741546242310,-8385.91,8.666e-05,2]
[355767038,1741546242320,-500.0,8.666e-05,2]
[355767041,1741546242330,-500.0,8.666e-05,2]
[355767043,1741546242340,-500.0,8.666e-05,2]
[355767045,1741546242350,-898.26,8.666e-05,2]
[355767048,1741546242360,-500.0,8.666e-05,2]
[355767051,1741546242369,-204.64741217,8.666e-05,2]
[355767054,1741546242379,-500.0,8.666e-05,2]
[355767057,1741546242389,-530.62291949,8.666e-05,2]
[355767059,1741546242398,-500.0,8.666e-05,2]
[355767061,1741546242408,-500.0,8.666e-05,2]
[355767063,1741546242418,-500.0,8.666e-05,2]
[355767066,1741546242427,-500.0,8.666e-05,2]
[355767069,1741546242437,-500.0,8.666e-05,2]
[355767072,1741546242446,-500.0,8.666e-05,2]
[355767074,1741546242456,-353614.3874,8.667e-05,2]
[355767076,1741546242465,-1127.5458,8.667e-05,2]
[355767078,1741546242474,-19272.70368024,8.74e-05,2]
[355767080,1741546242484,-500.0,8.767e-05,2]
[355767082,1741546242493,-500.0,8.767e-05,2]
[355767084,1741546242504,-500.0,8.767e-05,2]
[355767086,1741546242513,-547.81,8.767e-05,2]
[355767088,1741546242523,-500.0,8.767e-05,2]
[355767090,1741546242536,-545.81,8.767e-05,2]
[355767092,1741546242546,-614.28,8.767e-05,2]
[355767094,1741546242556,-500.0,8.767e-05,2]
[355767096,1741546242566,-500.0,8.767e-05,2]
[355767098,1741546242577,-500.0,8.767e-05,2]
[355767100,1741546242586,-500.0,8.767e-05,2]
[355767102,1741546242596,-223.54900745,8.767e-05,2]
[355767104,1741546242605,-500.0,8.767e-05,2]
[355767106,1741546242614,-500.0,8.767e-05,2]
[355767108,1741546242624,-500.0,8.767e-05,2]
[355767110,1741546242633,-500.0,8.767e-05,2]
[355767112,1741546242642,-500.0,8.767e-05,2]
[355767114,1741546242652,-500.0,8.767e-05,2]
[355767116,1741546242661,-500.0,8.767e-05,2]
[355767118,1741546242669,-500.0,8.767e-05,2]
[355767120,1741546242678,-500.0,8.767e-05,2]
[355767122,1741546242688,-500.0,8.767e-05,2]
[355767124,1741546242697,-500.0,8.767e-05,2]
[355767125,1741546242706,-500.0,8.767e-05,2]
[355767127,1741546242715,-500.0,8.767e-05,2]
[355767129,1741546242725,-500.0,8.767e-05,2]
[355767131,1741546242734,-500.0,8.767e-05,2]
[355767133,1741546242743,-22808.16841563,8.768e-05,2]
[355767135,1741546242752,-500.0,8.839e-05,2]
[355767137,1741546242760,-802.79,8.839e-05,2]
[355767139,1741546242769,-509.56,8.839e-05,2]
[355767141,1741546242776,-500.0,8.839e-05,2]
[355767143,1741546242790,-389.47090855,8.84e-05,2]
[355767145,1741546242799,-500.0,8.84e-05,2]
[355767147,1741546242808,-705.16,8.84e-05,2]
[355767149,1741546242817,-500.0,8.84e-05,2]
[355767151,1741546242826,-1127.93,8.84e-05,2]
[355767153,1741546242835,-153.821542,8.84e-05,2]
[355767155,1741546242845,-1079.62,8.84e-05,2]
[355767157,1741546242854,-500.0,8.84e-05,2]
[355767159,1741546242868,-1660.3,8.84e-05,2]
[355767161,1741546242878,-285.055882,8.84e-05,2]
[355767163,1741546242887,-588.89,8.84e-05,2]
[355767165,1741546242896,-500.0,8.84e-05,2]
[355767167,1741546242906,-545.12,8.84e-05,2]
[355767168,1741546242915,-761.97,8.84e-05,2]
[355767170,1741546242925,-500.0,8.84e-05,2]
[355767172,1741546242935,-1262.31,8.84e-05,2]
[355767174,1741546242943,-902.78,8.84e-05,2]
[355767177,1741546242952,-631.94,8.84e-05,2]
[355767178,1741546242961,-500.0,8.84e-05,2]
[355767180,1741546242968,-1277.74,8.84e-05,2]
[355767182,1741546242976,-500.0,8.84e-05,2]
[355767185,1741546242984,-709.59,8.84e-05,2]
[355767187,1741546242992,-914.53,8.84e-05,2]
[355767190,1741546243000,-500.0,8.84e-05,2]
[355767193,1741546243009,-1716.53,8.84e-05,2]
[355767196,1741546243017,-500.0,8.84e-05,2]
[355767199,1741546243027,-685.88,8.84e-05,2]
[355767202,1741546243042,-2303.87,8.84e-05,2]
[355767205,1741546243051,-803.96,8.84e-05,2]
[355767208,1741546243061,-500.0,8.84e-05,2]
[355767211,1741546243071,-1439.43,8.84e-05,2]
[355767214,1741546243081,-979.42,8.84e-05,2]
[355767217,1741546243091,-500.0,8.84e-05,2]
[355767220,1741546243101,-692.47,8.84e-05,2]
[355767222,1741546243110,-1150.4,8.84e-05,2]
[355767224,1741546243119,-4261.52,8.84e-05,2]
[355767226,1741546243128,-500.0,8.84e-05,2]
[355767228,1741546243137,-500.0,8.84e-05,2]
[355767230,1741546243147,-686.57,8.84e-05,2]
[355767232,1741546243157,-500.0,8.84e-05,2]
[355767234,1741546243167,-500.0,8.84e-05,2]
[355767236,1741546243177,-711.24,8.84e-05,2]
[355767239,1741546243188,-1125.72,8.84e-05,2]
[355767241,1741546243200,-1139.68,8.84e-05,2]
[355767243,1741546243210,-500.0,8.84e-05,2]
[355767244,1741546243220,-693.95,8.84e-05,2]
[355767246,1741546243231,-670.36,8.84e-05,2]